[Event "Early-Titled-Tuesday-Blitz-December-26-2023"]
[Site "Chess.com"]
[Date "2023.12.26"]
[Round "4"]
[White "slorovel"]
[Black "ilushka"]
[Result "1/2-1/2"]
[WhiteElo "2634"]
[BlackElo "2458"]
[TimeControl "180+1"]
[EndTime "8:39:34 PST"]
[Termination "Game drawn by stalemate"]

1. e4 {[%clk 0:03:00.9]} 1... e6 {[%clk 0:03:00.3]} 2. d4 {[%clk 0:03:00.6]}
2... d5 {[%clk 0:03:01.2]} 3. exd5 {[%clk 0:03:01.5]} 3... exd5 {[%clk
0:03:01.9]} 4. Bd3 {[%clk 0:03:02.2]} 4... Nc6 {[%clk 0:03:02.3]} 5. c3 {[%clk
0:03:01.1]} 5... Bd6 {[%clk 0:03:01.7]} 6. Nf3 {[%clk 0:03:01.5]} 6... Nge7
{[%clk 0:03:02.3]} 7. O-O {[%clk 0:03:01.5]} 7... O-O {[%clk 0:03:02.6]} 8. Nbd2
{[%clk 0:03:01.1]} 8... Bf5 {[%clk 0:03:03]} 9. Bxf5 {[%clk 0:03:00.2]} 9...
Nxf5 {[%clk 0:03:03.9]} 10. Re1 {[%clk 0:03:00.8]} 10... Qd7 {[%clk 0:03:01.2]}
11. Nf1 {[%clk 0:03:00.4]} 11... Rfe8 {[%clk 0:03:00.1]} 12. Rxe8+ {[%clk
0:03:00]} 12... Rxe8 {[%clk 0:03:00.2]} 13. Qd3 {[%clk 0:03:00.3]} 13... f6
{[%clk 0:02:58.8]} 14. Ng3 {[%clk 0:03:00.1]} 14... Nxg3 {[%clk 0:02:56]} 15.
hxg3 {[%clk 0:03:01]} 15... a6 {[%clk 0:02:55.2]} 16. a4 {[%clk 0:03:00.6]}
16... Ne7 {[%clk 0:02:55.2]} 17. Bd2 {[%clk 0:02:58.9]} 17... Qf5 {[%clk
0:02:54.3]} 18. Qxf5 {[%clk 0:02:53.7]} 18... Nxf5 {[%clk 0:02:54.1]} 19. Kf1
{[%clk 0:02:52.4]} 19... Kf7 {[%clk 0:02:49.2]} 20. Re1 {[%clk 0:02:51.4]} 20...
Rxe1+ {[%clk 0:02:48.3]} 21. Bxe1 {[%clk 0:02:52.3]} 21... c6 {[%clk 0:02:46.4]}
22. Ke2 {[%clk 0:02:52.3]} 22... h5 {[%clk 0:02:43.8]} 23. Kd3 {[%clk
0:02:51.8]} 23... g5 {[%clk 0:02:42.7]} 24. b3 {[%clk 0:02:51.9]} 24... g4
{[%clk 0:02:40.2]} 25. Nh2 {[%clk 0:02:44.2]} 25... Ke6 {[%clk 0:02:21.4]} 26.
c4 {[%clk 0:02:43.2]} 26... b5 {[%clk 0:02:15.9]} 27. axb5 {[%clk 0:02:31.3]}
27... axb5 {[%clk 0:02:15.2]} 28. Nf1 {[%clk 0:02:31.2]} 28... Bf8 {[%clk
0:01:52.3]} 29. Bd2 {[%clk 0:02:30.2]} 29... bxc4+ {[%clk 0:01:37.9]} 30. bxc4
{[%clk 0:02:30.1]} 30... Nd6 {[%clk 0:01:37.6]} 31. Ne3 {[%clk 0:02:22]} 31...
Bh6 {[%clk 0:01:18.3]} 32. cxd5+ {[%clk 0:02:03.4]} 32... cxd5 {[%clk
0:01:15.7]} 33. f3 {[%clk 0:02:03.6]} 33... Bxe3 {[%clk 0:01:13.1]} 34. Bxe3
{[%clk 0:02:01.8]} 34... Kf5 {[%clk 0:01:09.9]} 35. Bf4 {[%clk 0:01:57.4]} 35...
Nf7 {[%clk 0:01:04.9]} 36. Ke3 {[%clk 0:01:52.8]} 36... Nd8 {[%clk 0:01:02.9]}
37. Bc7 {[%clk 0:01:48.6]} 37... Ne6 {[%clk 0:01:02.6]} 38. Bd6 {[%clk
0:01:47.8]} 38... Kg5 {[%clk 0:00:49.2]} 39. Kd3 {[%clk 0:01:46.7]} 39... gxf3
{[%clk 0:00:37.3]} 40. gxf3 {[%clk 0:01:46.3]} 40... h4 {[%clk 0:00:37.2]} 41.
g4 {[%clk 0:01:32.3]} 41... h3 {[%clk 0:00:32.2]} 42. Ke3 {[%clk 0:01:28.9]}
42... f5 {[%clk 0:00:31.9]} 43. gxf5 {[%clk 0:01:22.2]} 43... Kxf5 {[%clk
0:00:32.8]} 44. Be5 {[%clk 0:01:21.5]} 44... Ng5 {[%clk 0:00:23.9]} 45. Kf2
{[%clk 0:01:19.4]} 45... Kg6 {[%clk 0:00:06]} 46. f4 {[%clk 0:01:18]} 46... Ne6
{[%clk 0:00:05]} 47. Kg3 {[%clk 0:01:17.4]} 47... Kf5 {[%clk 0:00:05.5]} 48.
Kxh3 {[%clk 0:01:13.4]} 48... Nxf4+ {[%clk 0:00:05.5]} 49. Kg3 {[%clk
0:01:13.4]} 49... Ne2+ {[%clk 0:00:01.7]} 50. Kf3 {[%clk 0:01:12.3]} 50... Nc3
{[%clk 0:00:01.9]} 51. Ke3 {[%clk 0:01:11]} 51... Nb5 {[%clk 0:00:02.2]} 52. Kd3
{[%clk 0:01:10.4]} 52... Na3 {[%clk 0:00:02.3]} 53. Kc3 {[%clk 0:01:07.6]} 53...
Nc4 {[%clk 0:00:02]} 54. Bh8 {[%clk 0:01:07]} 54... Ke4 {[%clk 0:00:02.4]} 55.
Kb4 {[%clk 0:01:06.6]} 55... Ne3 {[%clk 0:00:02]} 56. Kc5 {[%clk 0:01:06.6]}
56... Nf5 {[%clk 0:00:01.4]} 57. Bf6 {[%clk 0:01:05.5]} 57... Ng3 {[%clk
0:00:01.3]} 58. Kd6 {[%clk 0:01:03.2]} 58... Ne2 {[%clk 0:00:02.2]} 59. Kc5
{[%clk 0:01:02.3]} 59... Nc1 {[%clk 0:00:02.7]} 60. Kb4 {[%clk 0:00:59.5]} 60...
Ne2 {[%clk 0:00:02.8]} 61. Kc5 {[%clk 0:00:59.2]} 61... Nf4 {[%clk 0:00:03.4]}
62. Bh8 {[%clk 0:00:56.3]} 62... Nd3+ {[%clk 0:00:03.3]} 63. Kd6 {[%clk
0:00:55.2]} 63... Nc1 {[%clk 0:00:04]} 64. Kc5 {[%clk 0:00:48.8]} 64... Nb3+
{[%clk 0:00:04.6]} 65. Kb4 {[%clk 0:00:49]} 65... Nxd4 {[%clk 0:00:05.2]} 66.
Kc3 {[%clk 0:00:49.3]} 66... Nc6 {[%clk 0:00:05.2]} 67. Kd2 {[%clk 0:00:49.4]}
67... Ne5 {[%clk 0:00:03.5]} 68. Bg7 {[%clk 0:00:47.9]} 68... d4 {[%clk
0:00:02.6]} 69. Bh8 {[%clk 0:00:46.6]} 69... Nf3+ {[%clk 0:00:02.5]} 70. Kd1
{[%clk 0:00:46.9]} 70... d3 {[%clk 0:00:03]} 71. Bc3 {[%clk 0:00:46.6]} 71...
Nd4 {[%clk 0:00:02.8]} 72. Bxd4 {[%clk 0:00:46.4]} 72... Kxd4 {[%clk 0:00:03]}
73. Kd2 {[%clk 0:00:46.9]} 73... Kc4 {[%clk 0:00:03.5]} 74. Kd1 {[%clk
0:00:47.3]} 74... Kc3 {[%clk 0:00:04.4]} 75. Kc1 {[%clk 0:00:47.8]} 75... d2+
{[%clk 0:00:04.7]} 76. Kd1 {[%clk 0:00:48.3]} 76... Kd3 {[%clk 0:00:05.6]}
1/2-1/2

[Event "Early-Titled-Tuesday-Blitz-December-26-2023"]
[Site "Chess.com"]
[Date "2023.12.26"]
[Round "4"]
[White "LileKoridze"]
[Black "whitemirrorninja"]
[Result "1-0"]
[WhiteElo "2377"]
[BlackElo "2532"]
[TimeControl "180+1"]
[EndTime "8:39:49 PST"]
[Termination "LileKoridze won by checkmate"]

1. d4 {[%clk 0:03:00.9]} 1... g6 {[%clk 0:02:56.3]} 2. c4 {[%clk 0:03:00.7]}
2... f5 {[%clk 0:02:56.3]} 3. Nf3 {[%clk 0:03:00.1]} 3... Nf6 {[%clk 0:02:56.5]}
4. g3 {[%clk 0:03:00.2]} 4... Bg7 {[%clk 0:02:57.1]} 5. Bg2 {[%clk 0:02:59.6]}
5... O-O {[%clk 0:02:57.7]} 6. O-O {[%clk 0:02:59.6]} 6... b6 {[%clk 0:02:57.9]}
7. Nc3 {[%clk 0:02:59.4]} 7... Bb7 {[%clk 0:02:57.9]} 8. d5 {[%clk 0:02:59.1]}
8... Na6 {[%clk 0:02:56]} 9. a3 {[%clk 0:02:59]} 9... Nc5 {[%clk 0:02:55.8]} 10.
Rb1 {[%clk 0:02:58.4]} 10... Nce4 {[%clk 0:02:53.7]} 11. Nb5 {[%clk 0:02:57.3]}
11... c6 {[%clk 0:02:45.2]} 12. dxc6 {[%clk 0:02:57.6]} 12... dxc6 {[%clk
0:02:36.9]} 13. Nbd4 {[%clk 0:02:57.2]} 13... Qc8 {[%clk 0:02:28.8]} 14. Qc2
{[%clk 0:02:56.2]} 14... c5 {[%clk 0:02:27.5]} 15. Nb5 {[%clk 0:02:54.6]} 15...
Rd8 {[%clk 0:02:21]} 16. Bf4 {[%clk 0:02:53.2]} 16... Nd6 {[%clk 0:02:10.2]} 17.
Nxd6 {[%clk 0:02:33.1]} 17... exd6 {[%clk 0:02:11.1]} 18. Rbd1 {[%clk 0:02:33]}
18... Be4 {[%clk 0:02:03.7]} 19. Qc1 {[%clk 0:02:32.5]} 19... d5 {[%clk
0:02:01.5]} 20. cxd5 {[%clk 0:02:32.1]} 20... Nxd5 {[%clk 0:01:59.4]} 21. Nd2
{[%clk 0:02:26.1]} 21... Bxg2 {[%clk 0:01:52.8]} 22. Kxg2 {[%clk 0:02:25.9]}
22... Qc6 {[%clk 0:01:31.5]} 23. Kg1 {[%clk 0:02:23.6]} 23... Nxf4 {[%clk
0:01:28.1]} 24. gxf4 {[%clk 0:02:24.5]} 24... Qf6 {[%clk 0:01:14.4]} 25. Nc4
{[%clk 0:02:23.5]} 25... Qe6 {[%clk 0:00:58.4]} 26. e3 {[%clk 0:02:14.2]} 26...
b5 {[%clk 0:00:54.9]} 27. Nd2 {[%clk 0:02:00.4]} 27... Qc6 {[%clk 0:00:54.9]}
28. Nb1 {[%clk 0:01:50.1]} 28... a5 {[%clk 0:00:49.4]} 29. Rxd8+ {[%clk
0:01:45.6]} 29... Rxd8 {[%clk 0:00:49.4]} 30. Rd1 {[%clk 0:01:46.2]} 30... Rxd1+
{[%clk 0:00:28.6]} 31. Qxd1 {[%clk 0:01:45.7]} 31... Bxb2 {[%clk 0:00:29.3]} 32.
Qb3+ {[%clk 0:01:45.6]} 32... c4 {[%clk 0:00:29]} 33. Qxb2 {[%clk 0:01:45.8]}
33... Qc5 {[%clk 0:00:27.7]} 34. Qd4 {[%clk 0:00:39.9]} 34... Qxd4 {[%clk
0:00:17.6]} 35. exd4 {[%clk 0:00:40]} 35... b4 {[%clk 0:00:13.1]} 36. axb4
{[%clk 0:00:39.9]} 36... axb4 {[%clk 0:00:14]} 37. Nd2 {[%clk 0:00:39]} 37... c3
{[%clk 0:00:13.3]} 38. Nb3 {[%clk 0:00:39]} 38... Kf7 {[%clk 0:00:14.1]} 39. Kf1
{[%clk 0:00:39.2]} 39... Ke6 {[%clk 0:00:14.7]} 40. Ke2 {[%clk 0:00:39.8]} 40...
Kd5 {[%clk 0:00:15.4]} 41. Kd3 {[%clk 0:00:40.5]} 41... h6 {[%clk 0:00:10.6]}
42. h4 {[%clk 0:00:36.6]} 42... h5 {[%clk 0:00:08.6]} 43. f3 {[%clk 0:00:36.7]}
43... c2 {[%clk 0:00:08]} 44. Kxc2 {[%clk 0:00:35.2]} 44... Kc4 {[%clk
0:00:08.7]} 45. Kb2 {[%clk 0:00:35]} 45... Kd5 {[%clk 0:00:08.5]} 46. Kc2 {[%clk
0:00:32.8]} 46... Kc4 {[%clk 0:00:08.8]} 47. d5 {[%clk 0:00:19.2]} 47... Kxd5
{[%clk 0:00:07.6]} 48. Kd3 {[%clk 0:00:19.5]} 48... Ke6 {[%clk 0:00:03.3]} 49.
Kc4 {[%clk 0:00:18.9]} 49... Kd6 {[%clk 0:00:03.4]} 50. Kxb4 {[%clk 0:00:18]}
50... Kd5 {[%clk 0:00:04.3]} 51. Kc3 {[%clk 0:00:18.3]} 51... Ke6 {[%clk
0:00:04.6]} 52. Kd4 {[%clk 0:00:19.2]} 52... Kd6 {[%clk 0:00:05.2]} 53. Nc5
{[%clk 0:00:19.5]} 53... Ke7 {[%clk 0:00:05.4]} 54. Ke5 {[%clk 0:00:19.7]} 54...
Kf7 {[%clk 0:00:06.2]} 55. Nd7 {[%clk 0:00:18.4]} 55... Ke7 {[%clk 0:00:06.4]}
56. Nb6 {[%clk 0:00:17.8]} 56... Kf7 {[%clk 0:00:05.9]} 57. Nd5 {[%clk
0:00:18.1]} 57... Kg7 {[%clk 0:00:05.6]} 58. Ke6 {[%clk 0:00:18.7]} 58... Kh7
{[%clk 0:00:04]} 59. Kf6 {[%clk 0:00:18.7]} 59... Kh6 {[%clk 0:00:03.7]} 60. Ne7
{[%clk 0:00:19.3]} 60... Kh7 {[%clk 0:00:03.4]} 61. Nxg6 {[%clk 0:00:19.9]}
61... Kh6 {[%clk 0:00:04.3]} 62. Kxf5 {[%clk 0:00:20.1]} 62... Kg7 {[%clk
0:00:05]} 63. Ne5 {[%clk 0:00:20.5]} 63... Kh6 {[%clk 0:00:05.3]} 64. Ke6 {[%clk
0:00:20.3]} 64... Kg7 {[%clk 0:00:05.7]} 65. f5 {[%clk 0:00:21]} 65... Kh6
{[%clk 0:00:05.7]} 66. f6 {[%clk 0:00:21]} 66... Kh7 {[%clk 0:00:05.8]} 67. f7
{[%clk 0:00:21.5]} 67... Kg7 {[%clk 0:00:06]} 68. Ke7 {[%clk 0:00:22.1]} 68...
Kh7 {[%clk 0:00:06.6]} 69. f4 {[%clk 0:00:16.7]} 69... Kh6 {[%clk 0:00:04.7]}
70. f8=Q+ {[%clk 0:00:16.5]} 70... Kh7 {[%clk 0:00:05.4]} 71. Qf7+ {[%clk
0:00:15.9]} 71... Kh6 {[%clk 0:00:02.1]} 72. Qg6# {[%clk 0:00:16.2]} 1-0

[Event "Early-Titled-Tuesday-Blitz-December-26-2023"]
[Site "Chess.com"]
[Date "2023.12.26"]
[Round "4"]
[White "BogdanDeac"]
[Black "seopie"]
[Result "1-0"]
[WhiteElo "3011"]
[BlackElo "2822"]
[TimeControl "180+1"]
[EndTime "8:39:52 PST"]
[Termination "BogdanDeac won by resignation"]

1. d4 {[%clk 0:03:00.9]} 1... Nf6 {[%clk 0:02:59.4]} 2. c4 {[%clk 0:03:01.5]}
2... g6 {[%clk 0:02:59.5]} 3. Nc3 {[%clk 0:03:00.3]} 3... d5 {[%clk 0:02:59.8]}
4. cxd5 {[%clk 0:02:59.9]} 4... Nxd5 {[%clk 0:03:00.7]} 5. Bd2 {[%clk
0:03:00.4]} 5... Bg7 {[%clk 0:03:00.3]} 6. e4 {[%clk 0:03:00.4]} 6... Nxc3
{[%clk 0:02:58.1]} 7. Bxc3 {[%clk 0:03:01.3]} 7... O-O {[%clk 0:02:55.9]} 8. Qd2
{[%clk 0:03:01.9]} 8... b6 {[%clk 0:02:47.9]} 9. Nf3 {[%clk 0:02:58.4]} 9... Bb7
{[%clk 0:02:45.6]} 10. Bd3 {[%clk 0:02:58.9]} 10... Nd7 {[%clk 0:02:45.5]} 11.
O-O {[%clk 0:02:58.7]} 11... e6 {[%clk 0:02:45.9]} 12. b4 {[%clk 0:02:58.1]}
12... Qe7 {[%clk 0:02:40.6]} 13. Rac1 {[%clk 0:02:53.3]} 13... Rfc8 {[%clk
0:02:40.4]} 14. Rfd1 {[%clk 0:02:51.6]} 14... c5 {[%clk 0:02:37.1]} 15. dxc5
{[%clk 0:02:50.7]} 15... Bxc3 {[%clk 0:02:36.9]} 16. Rxc3 {[%clk 0:02:45.2]}
16... bxc5 {[%clk 0:02:37.8]} 17. b5 {[%clk 0:02:45.5]} 17... Nb6 {[%clk
0:02:26.5]} 18. Rb1 {[%clk 0:02:43.7]} 18... c4 {[%clk 0:02:23.8]} 19. Bc2
{[%clk 0:02:43.4]} 19... Rd8 {[%clk 0:02:23]} 20. Qe3 {[%clk 0:02:40.3]} 20...
Rac8 {[%clk 0:02:17.5]} 21. a4 {[%clk 0:02:37.6]} 21... Qc5 {[%clk 0:02:17.4]}
22. a5 {[%clk 0:01:54.8]} 22... Qxe3 {[%clk 0:02:16]} 23. fxe3 {[%clk
0:01:53.9]} 23... Nd7 {[%clk 0:02:16.8]} 24. Rb4 {[%clk 0:01:51.5]} 24... Rc5
{[%clk 0:02:11.2]} 25. Rcxc4 {[%clk 0:01:17.7]} 25... Rdc8 {[%clk 0:02:10.9]}
26. Rxc5 {[%clk 0:01:08]} 26... Rxc5 {[%clk 0:02:10.8]} 27. Bd3 {[%clk 0:01:08]}
27... Rc3 {[%clk 0:02:08.8]} 28. Bb1 {[%clk 0:00:28.8]} 28... Rxe3 {[%clk
0:02:07.2]} 29. Rd4 {[%clk 0:00:15.4]} 29... Nf6 {[%clk 0:02:05.8]} 30. Nd2
{[%clk 0:00:07]} 30... Ng4 {[%clk 0:01:31.6]} 31. g3 {[%clk 0:00:06.8]} 31...
Rc3 {[%clk 0:00:43.3]} 32. Rd7 {[%clk 0:00:06]} 32... Bc8 {[%clk 0:00:38.7]} 33.
Rxa7 {[%clk 0:00:05.5]} 33... Rc1+ {[%clk 0:00:34.7]} 34. Kg2 {[%clk 0:00:05.2]}
34... Rd1 {[%clk 0:00:34.7]} 35. Nc4 {[%clk 0:00:03.8]} 35... Rxb1 {[%clk
0:00:34]} 36. Nd6 {[%clk 0:00:04.3]} 36... Kg7 {[%clk 0:00:20.9]} 37. Rxf7+
{[%clk 0:00:03.4]} 37... Kh6 {[%clk 0:00:20.1]} 38. Rc7 {[%clk 0:00:04.2]} 38...
Ra1 {[%clk 0:00:19.3]} 39. Rxc8 {[%clk 0:00:03.2]} 39... Rxa5 {[%clk 0:00:19.1]}
40. b6 {[%clk 0:00:03.8]} 40... Ra2+ {[%clk 0:00:18]} 41. Kf1 {[%clk 0:00:03.9]}
41... Nxh2+ {[%clk 0:00:09.5]} 42. Ke1 {[%clk 0:00:03.9]} 42... Nf3+ {[%clk
0:00:08.9]} 43. Kf1 {[%clk 0:00:04.5]} 43... Nd2+ {[%clk 0:00:07.2]} 44. Ke1
{[%clk 0:00:03.6]} 44... Rb2 {[%clk 0:00:05.6]} 45. b7 {[%clk 0:00:03.3]} 45...
Nxe4 {[%clk 0:00:05.8]} 46. Nxe4 {[%clk 0:00:02.9]} 46... Rxb7 {[%clk
0:00:05.9]} 47. Kf2 {[%clk 0:00:03.6]} 47... Kg7 {[%clk 0:00:03.3]} 48. Rc6
{[%clk 0:00:03.4]} 48... Rf7+ {[%clk 0:00:03.7]} 49. Ke3 {[%clk 0:00:03.4]}
49... Re7 {[%clk 0:00:04.6]} 50. Kf4 {[%clk 0:00:03.3]} 50... h6 {[%clk
0:00:05]} 51. Ke5 {[%clk 0:00:03.7]} 51... g5 {[%clk 0:00:05.4]} 52. Rxe6 {[%clk
0:00:04]} 52... Rxe6+ {[%clk 0:00:05.7]} 53. Kxe6 {[%clk 0:00:04.3]} 53... Kg6
{[%clk 0:00:06.6]} 54. Ke5 {[%clk 0:00:04.4]} 54... h5 {[%clk 0:00:05.4]} 55.
Nf2 {[%clk 0:00:05]} 55... g4 {[%clk 0:00:02.8]} 56. Kf4 {[%clk 0:00:05.4]}
56... Kf6 {[%clk 0:00:03.5]} 57. Ne4+ {[%clk 0:00:05.2]} 57... Kg6 {[%clk
0:00:04]} 58. Nd2 {[%clk 0:00:05.8]} 58... Kf6 {[%clk 0:00:03.8]} 59. Nc4 {[%clk
0:00:06.1]} 59... Kg6 {[%clk 0:00:04.1]} 60. Nd6 {[%clk 0:00:06.5]} 60... Kf6
{[%clk 0:00:04.3]} 61. Nf5 {[%clk 0:00:06.4]} 61... Kg6 {[%clk 0:00:04.5]} 62.
Nh4+ {[%clk 0:00:06.7]} 62... Kf6 {[%clk 0:00:04.9]} 63. Ke4 {[%clk 0:00:07]}
63... Ke6 {[%clk 0:00:04.4]} 64. Kf4 {[%clk 0:00:07.3]} 64... Kf6 {[%clk
0:00:04.8]} 65. Ke3 {[%clk 0:00:07.6]} 65... Ke5 {[%clk 0:00:04.2]} 66. Ng2
{[%clk 0:00:07.9]} 66... Kf5 {[%clk 0:00:03.9]} 67. Kd4 {[%clk 0:00:08.3]} 67...
Ke6 {[%clk 0:00:02.9]} 68. Nf4+ {[%clk 0:00:08.1]} 1-0

[Event "Early-Titled-Tuesday-Blitz-December-26-2023"]
[Site "Chess.com"]
[Date "2023.12.26"]
[Round "4"]
[White "Vincent_Vega95"]
[Black "CSB7"]
[Result "1-0"]
[WhiteElo "2859"]
[BlackElo "2688"]
[TimeControl "180+1"]
[EndTime "8:40:05 PST"]
[Termination "Vincent_Vega95 won by resignation"]

1. Nf3 {[%clk 0:03:00.9]} 1... d5 {[%clk 0:02:57.4]} 2. g3 {[%clk 0:03:01.2]}
2... Nc6 {[%clk 0:02:56]} 3. Bg2 {[%clk 0:03:01.8]} 3... e5 {[%clk 0:02:55.1]}
4. d3 {[%clk 0:03:02.3]} 4... Nf6 {[%clk 0:02:54]} 5. Bg5 {[%clk 0:03:02]} 5...
Be7 {[%clk 0:02:53.7]} 6. O-O {[%clk 0:03:02]} 6... O-O {[%clk 0:02:53.3]} 7.
Nc3 {[%clk 0:03:01.6]} 7... d4 {[%clk 0:02:50.3]} 8. Bxf6 {[%clk 0:02:59.3]}
8... Bxf6 {[%clk 0:02:49]} 9. Ne4 {[%clk 0:03:00]} 9... Be7 {[%clk 0:02:49]} 10.
c3 {[%clk 0:03:00.7]} 10... f5 {[%clk 0:02:43.8]} 11. Ned2 {[%clk 0:02:59.7]}
11... Be6 {[%clk 0:02:43.5]} 12. cxd4 {[%clk 0:02:52]} 12... exd4 {[%clk
0:02:39.6]} 13. Rc1 {[%clk 0:02:52.5]} 13... a5 {[%clk 0:02:09.8]} 14. a4 {[%clk
0:02:21.6]} 14... Kh8 {[%clk 0:01:54.9]} 15. Nb3 {[%clk 0:02:19]} 15... Bd5
{[%clk 0:01:48.8]} 16. Ne1 {[%clk 0:01:56.3]} 16... Bb4 {[%clk 0:01:31.7]} 17.
Nc5 {[%clk 0:01:48.9]} 17... Rb8 {[%clk 0:01:10.7]} 18. Bxd5 {[%clk 0:01:32]}
18... Qxd5 {[%clk 0:01:11]} 19. Qb3 {[%clk 0:01:32.7]} 19... Qxb3 {[%clk
0:01:05.2]} 20. Nxb3 {[%clk 0:01:31.5]} 20... Rfe8 {[%clk 0:01:05.9]} 21. Rc2
{[%clk 0:01:27.5]} 21... Rbd8 {[%clk 0:00:50.3]} 22. Nf3 {[%clk 0:01:25.1]}
22... Rd5 {[%clk 0:00:50.7]} 23. Rfc1 {[%clk 0:01:24.4]} 23... Kg8 {[%clk
0:00:40.1]} 24. Kf1 {[%clk 0:01:24.3]} 24... Kf7 {[%clk 0:00:39]} 25. Rc4 {[%clk
0:01:24.3]} 25... Red8 {[%clk 0:00:37.2]} 26. Nc5 {[%clk 0:01:17.1]} 26... Bxc5
{[%clk 0:00:23.2]} 27. Rxc5 {[%clk 0:01:18]} 27... Rxc5 {[%clk 0:00:22.8]} 28.
Rxc5 {[%clk 0:01:18.9]} 28... Kf6 {[%clk 0:00:23]} 29. h3 {[%clk 0:01:18.3]}
29... Rd6 {[%clk 0:00:20.4]} 30. g4 {[%clk 0:01:18.2]} 30... fxg4 {[%clk
0:00:20]} 31. hxg4 {[%clk 0:01:19.1]} 31... h6 {[%clk 0:00:18.7]} 32. g5+ {[%clk
0:01:18.6]} 32... hxg5 {[%clk 0:00:19.6]} 33. Nxg5 {[%clk 0:01:19.3]} 33... Ke7
{[%clk 0:00:19.6]} 34. Ne4 {[%clk 0:01:08.3]} 34... Rh6 {[%clk 0:00:19.5]} 35.
Rg5 {[%clk 0:01:04.5]} 35... Rh1+ {[%clk 0:00:19]} 36. Kg2 {[%clk 0:01:04.4]}
36... Rb1 {[%clk 0:00:19.5]} 37. Rxg7+ {[%clk 0:01:04.1]} 37... Kd8 {[%clk
0:00:19.7]} 38. f4 {[%clk 0:00:32.4]} 38... Rxb2 {[%clk 0:00:19.3]} 39. Kf3
{[%clk 0:00:33.2]} 39... b5 {[%clk 0:00:19.4]} 40. Nc5 {[%clk 0:00:28.6]} 40...
bxa4 {[%clk 0:00:15.8]} 41. Nxa4 {[%clk 0:00:28.3]} 41... Rb5 {[%clk 0:00:13.4]}
42. Rg5 {[%clk 0:00:23.9]} 42... Rb4 {[%clk 0:00:11.6]} 43. Nc5 {[%clk
0:00:21.5]} 43... a4 {[%clk 0:00:12.1]} 44. Rg6 {[%clk 0:00:20.5]} 44... Ne7
{[%clk 0:00:05.2]} 45. Ra6 {[%clk 0:00:19.2]} 45... Nd5 {[%clk 0:00:05.6]} 46.
Rxa4 {[%clk 0:00:14.5]} 46... Rxa4 {[%clk 0:00:05]} 47. Nxa4 {[%clk 0:00:15.4]}
47... Ke7 {[%clk 0:00:05.3]} 48. Nb2 {[%clk 0:00:11.4]} 48... c5 {[%clk
0:00:03.6]} 49. Nc4 {[%clk 0:00:10.8]} 49... Ke6 {[%clk 0:00:04]} 50. e4 {[%clk
0:00:09.2]} 50... dxe3 {[%clk 0:00:04.9]} 51. Nxe3 {[%clk 0:00:09.2]} 51... Ne7
{[%clk 0:00:04.8]} 52. Ke4 {[%clk 0:00:09.2]} 52... Ng8 {[%clk 0:00:05.1]} 53.
f5+ {[%clk 0:00:09.5]} 53... Kd6 {[%clk 0:00:04.8]} 54. Ng4 {[%clk 0:00:10.2]}
54... Kd7 {[%clk 0:00:02]} 55. Kd5 {[%clk 0:00:09.4]} 55... Ne7+ {[%clk
0:00:02.7]} 56. Ke5 {[%clk 0:00:09.1]} 56... Nc6+ {[%clk 0:00:02.5]} 57. Ke4
{[%clk 0:00:09.7]} 57... Kd6 {[%clk 0:00:02.5]} 58. Ne3 {[%clk 0:00:09.8]} 58...
Ne7 {[%clk 0:00:01.8]} 59. Nc4+ {[%clk 0:00:09.7]} 59... Kd7 {[%clk 0:00:01.7]}
60. Ke5 {[%clk 0:00:10.2]} 60... Nc6+ {[%clk 0:00:02.2]} 61. Ke4 {[%clk
0:00:10.1]} 61... Ke7 {[%clk 0:00:02.4]} 62. Ne5 {[%clk 0:00:09.7]} 62... Nb4
{[%clk 0:00:02.2]} 63. Ng4 {[%clk 0:00:08.1]} 63... Nc6 {[%clk 0:00:02.2]} 64.
Kd5 {[%clk 0:00:07.9]} 64... Nb4+ {[%clk 0:00:02.4]} 65. Kc4 {[%clk 0:00:08.6]}
65... Nc6 {[%clk 0:00:02.3]} 66. Kxc5 {[%clk 0:00:08.6]} 66... Na5 {[%clk
0:00:02]} 67. d4 {[%clk 0:00:08.3]} 67... Nb3+ {[%clk 0:00:02.6]} 68. Kd5 {[%clk
0:00:08.2]} 68... Nd2 {[%clk 0:00:02.5]} 69. Ke5 {[%clk 0:00:08.4]} 69... Nc4+
{[%clk 0:00:02.8]} 70. Ke4 {[%clk 0:00:08.8]} 70... Kd6 {[%clk 0:00:02.7]} 71.
f6 {[%clk 0:00:07.3]} 71... Ke6 {[%clk 0:00:02.3]} 72. d5+ {[%clk 0:00:07.8]}
72... Kf7 {[%clk 0:00:02.8]} 73. Ne5+ {[%clk 0:00:08.1]} 73... Nxe5 {[%clk
0:00:02.5]} 74. Kxe5 {[%clk 0:00:09]} 1-0